fUST/lending_fUST_20250717
["ID","MTS","AMOUNT","RATE_DAILY","PERIOD"]
[372641578,1752726649388,-242.04410817,0.00019973,2]
[372641579,1752726649399,-500.0,0.00019973,2]
[372641580,1752726649408,-502.41079222,0.00019973,2]
[372641581,1752726649419,-502.33047726,0.00019973,2]
[372641582,1752726649428,-643.25125216,0.00019973,2]
[372641583,1752726649438,-500.0,0.00019973,2]
[372641584,1752726649447,-500.0,0.00019973,2]
[372641585,1752726649457,-500.0,0.00019973,2]
[372641586,1752726649466,-336.64414175,0.00019973,2]
[372641587,1752726649476,-501.15315688,0.00019973,2]
[372641588,1752726649485,-500.0,0.00019973,2]
[372641589,1752726649494,-500.0,0.00019973,2]
[372641590,1752726649504,-500.0,0.00019973,2]
[372641591,1752726649514,-844.85047063,0.00019973,2]
[372641592,1752726649523,-3379.40188252,0.00019973,2]
[372641593,1752726649532,-5693.79594324,0.00019973,2]
[372641594,1752726649765,-1902.2546382,0.00019973,2]
[372641595,1752726649775,-1264.86536828,0.00019975,2]
[372641596,1752726649785,-121.62030999,0.00019977,2]
[372641597,1752726650151,-38.37969001,0.00019977,2]
[372641598,1752726650161,-449.499999,0.0001998,2]
[372641599,1752726650171,-3947.08772052,0.00019988,7]
[372641600,1752726650183,-3124.18024654,0.00019988,7]
[372641601,1752726650318,-448.14646938,0.00018151,2]
[372641602,1752726650329,-652.046,0.00019153,2]
[372641603,1752726650339,-3636.87087682,0.00019988,7]
[372641604,1752726650479,-739.09559921,0.00018157,2]
[372641605,1752726650489,-3112.60137542,0.00019988,7]
[372641606,1752726650500,-2503.09476832,0.00019988,7]
[372641607,1752726650546,-168.55104431,0.00018151,2]
[372641608,1752726650556,-295552.59546947,0.00019988,7]
[372641609,1752726650566,-151.0,0.00019988,2]
[372641610,1752726650575,-152.253913,0.00019988,2]
[372641611,1752726650586,-151.0,0.00019988,2]
[372641612,1752726650596,-151.0,0.00019988,2]
[372641613,1752726650605,-151.0,0.00019988,2]
[372641614,1752726650615,-151.0,0.00019988,2]
[372641615,1752726650624,-151.0,0.00019988,2]
[372641616,1752726650634,-151.0,0.00019988,2]
[372641617,1752726650643,-155.330972,0.00019988,2]
[372641618,1752726650653,-500.0,0.00019988,2]
[372641619,1752726650662,-151.0,0.00019988,2]
[372641620,1752726650672,-400.254841,0.00019988,2]
[372641621,1752726650682,-978.698971,0.00019988,2]
[372641622,1752726650691,-400.254841,0.00019988,2]
[372641623,1752726650702,-978.698971,0.00019988,2]
[372641624,1752726650712,-151.0,0.00019988,2]
[372641625,1752726650721,-233.945905,0.00019988,2]
[372641626,1752726650731,-233.945905,0.00019988,2]
[372641627,1752726650741,-151.0,0.00019988,2]
[372641628,1752726650750,-151.0,0.00019988,2]
[372641629,1752726650760,-227.709415,0.00019988,2]
[372641630,1752726650770,-500.0,0.00019988,2]
[372641631,1752726650779,-168.42775,0.00019988,2]
[372641632,1752726650791,-168.42775,0.00019988,2]
[372641633,1752726650801,-162.733367,0.00019988,2]
[372641634,1752726650810,-162.733367,0.00019988,2]
[372641635,1752726650820,-151.0,0.00019988,2]
[372641636,1752726650830,-369.77551,0.00019988,2]
[372641637,1752726650840,-369.77551,0.00019988,2]
[372641638,1752726650850,-151.0,0.00019988,2]
[372641639,1752726650859,-151.0,0.00019988,2]
[372641640,1752726650869,-270.577358,0.00019988,2]
[372641641,1752726650879,-270.577358,0.00019988,2]
[372641642,1752726650888,-326.602578,0.00019988,2]
[372641643,1752726650897,-326.602578,0.00019988,2]
[372641644,1752726650907,-151.0,0.00019988,2]
[372641645,1752726650917,-151.0,0.00019988,2]
[372641646,1752726650927,-151.0,0.00019988,2]
[372641647,1752726650936,-151.0,0.00019988,2]
[372641648,1752726650946,-178.450804,0.00019988,2]
[372641649,1752726650955,-178.450804,0.00019988,2]
[372641650,1752726650965,-151.0,0.00019989,2]
[372641651,1752726650974,-151.0,0.00019989,2]
[372641652,1752726650983,-151.0,0.00019989,2]
[372641653,1752726650993,-151.0,0.00019989,2]
[372641654,1752726651003,-151.0,0.00019989,2]
[372641655,1752726651012,-151.0,0.00019989,2]
[372641656,1752726651021,-151.0,0.00019989,2]
[372641657,1752726651030,-197.647021,0.00019989,2]
[372641658,1752726651041,-151.0,0.00019989,2]
[372641659,1752726651051,-250.971124,0.00019989,2]
[372641660,1752726651060,-151.0,0.00019989,2]
[372641661,1752726651071,-151.0,0.00019989,2]
[372641662,1752726651081,-151.0,0.00019989,2]
[372641663,1752726651091,-151.0,0.00019989,2]
[372641664,1752726651101,-151.0,0.00019989,2]
[372641665,1752726651110,-151.0,0.00019989,2]
[372641666,1752726651119,-151.0,0.00019989,2]
[372641667,1752726651129,-151.0,0.00019989,2]
[372641668,1752726651138,-152.220716,0.00019989,2]
[372641669,1752726651148,-151.0,0.00019989,2]
[372641670,1752726651158,-154.761435,0.00019989,2]
[372641671,1752726651168,-251.739857,0.00019989,2]
[372641672,1752726651177,-251.739857,0.00019989,2]
[372641673,1752726651187,-152.403474,0.00019989,2]
[372641674,1752726651196,-151.0,0.00019989,2]
[372641675,1752726651209,-151.0,0.00019989,2]
[372641676,1752726651218,-400.254841,0.00019989,2]
[372641677,1752726651228,-400.254841,0.00019989,2]
[372641678,1752726651237,-978.698971,0.00019989,2]
[372641679,1752726651247,-400.254841,0.00019989,2]
[372641680,1752726651256,-978.698971,0.00019989,2]
[372641681,1752726651351,-400.254841,0.00019989,2]
[372641682,1752726651361,-978.698971,0.00019989,2]
[372641683,1752726651371,-978.698971,0.00019989,2]
[372641684,1752726651380,-151.0,0.00019989,2]
[372641685,1752726651391,-151.0,0.00019989,2]
[372641686,1752726651401,-233.945905,0.00019989,2]
[372641687,1752726651410,-233.945905,0.00019989,2]
[372641688,1752726651419,-151.0,0.00019989,2]
[372641689,1752726651429,-151.0,0.00019989,2]
[372641690,1752726651439,-151.0,0.00019989,2]
[372641691,1752726651448,-168.42775,0.00019989,2]
[372641692,1752726651458,-168.42775,0.00019989,2]
[372641693,1752726651467,-168.42775,0.00019989,2]
[372641694,1752726651477,-168.42775,0.00019989,2]
[372641695,1752726651487,-162.733367,0.00019989,2]
[372641696,1752726651496,-162.733367,0.00019989,2]
[372641697,1752726651506,-162.733367,0.00019989,2]
[372641698,1752726651515,-162.733367,0.00019989,2]
[372641699,1752726651525,-271.287093,0.00019989,2]
[372641700,1752726651534,-369.77551,0.00019989,2]
[372641701,1752726651546,-369.77551,0.00019989,2]
[372641702,1752726651555,-369.77551,0.00019989,2]
[372641703,1752726651564,-369.77551,0.00019989,2]
[372641704,1752726651574,-151.0,0.00019989,2]
[372641705,1752726651583,-151.0,0.00019989,2]
[372641706,1752726651593,-286.545673,0.00019989,2]
[372641707,1752726651602,-270.577358,0.00019989,2]
[372641708,1752726651612,-270.577358,0.00019989,2]
[372641709,1752726651621,-270.577358,0.00019989,2]
[372641710,1752726651631,-270.577358,0.00019989,2]
[372641711,1752726651640,-326.602578,0.00019989,2]
[372641712,1752726651650,-326.602578,0.00019989,2]
[372641713,1752726651659,-326.602578,0.00019989,2]
[372641714,1752726651669,-326.602578,0.00019989,2]
[372641715,1752726651679,-151.0,0.00019989,2]
[372641716,1752726651688,-151.0,0.00019989,2]
[372641717,1752726651698,-275.90474,0.00019989,2]
[372641718,1752726651707,-151.0,0.00019989,2]
[372641719,1752726651717,-151.0,0.00019989,2]
[372641720,1752726651727,-203.174648,0.00019989,2]
[372641721,1752726651736,-178.450804,0.00019989,2]
[372641722,1752726651746,-178.450804,0.00019989,2]
[372641723,1752726651755,-178.450804,0.00019989,2]
[372641724,1752726651765,-178.450804,0.00019989,2]
[372641725,1752726651774,-115826.66051394,0.00019989,2]
[372641726,1752726651788,-472.95933375,0.00019989,2]
[372641729,1752726663403,-240.89402209,0.00018139,2]
[372641735,1752726781852,150.0,0.00017085,2]
[372641737,1752726857283,150.0,0.00017289,2]
[372641739,1752726961063,168.89614294,0.00018051,2]
[372641744,1752727051471,245.734799,0.00013699,2]
[372641754,1752727216866,150.0,0.00017262,2]
[372641761,1752727288210,150.0,0.00017215,2]
[372641762,1752727318930,6000.0,0.000181,2]
[372641768,1752727360204,150.0,0.00017242,2]
[372641771,1752727430532,150.0,0.00017209,2]
[372641772,1752727441311,174.969999,0.00025869,120]
[372641773,1752727450638,168.89614294,0.0001805,2]
[372641774,1752727503375,150.0,0.00017229,2]
[372641780,1752727580195,150.0,0.00017065,2]
[372641786,1752727722107,37316.11749838,0.00018,2]
[372641824,1752727832085,-515.20248598,0.00018139,2]
[372641825,1752727832096,-1032.0,0.00018146,2]
[372641826,1752727832106,-500.0,0.00018147,2]
[372641827,1752727832115,-214.41424921,0.00018147,2]
[372641828,1752727832125,-500.0,0.00018147,2]
[372641829,1752727832135,-397.59519644,0.00018147,2]
[372641831,1752727832144,-370.20487632,0.00018147,2]
[372641834,1752727832154,-500.0,0.00018147,2]
[372641836,1752727832163,-460.0,0.00018147,2]
[372641838,1752727832172,-460.0,0.00018147,2]
[372641840,1752727832181,-460.0,0.00018147,2]
[372641842,1752727832190,-1531.92,0.00018147,2]
[372641845,1752727832200,-2049.46938861,0.00018148,2]
[372641911,1752727840215,-460.0,0.00018147,2]
[372641912,1752727840225,-364.46592575,0.00018148,2]
[372641913,1752727840236,-508.33002486,0.00018148,2]
[372641914,1752727840248,-333.8023839,0.00018148,2]
[372641999,1752727982995,19201.4029091,0.00018051,2]
[372642000,1752727994822,4367.735948,0.00023,30]
[372642001,1752728016646,150.0,0.00016534,2]
[372642002,1752728017085,150.0,0.00018037,2]
[372642004,1752728044858,241.62698,0.00013699,2]
[372642017,1752728470482,180.41,0.00015,2]
[372642022,1752728838095,-264.42,0.00018139,3]
[372642023,1752728838116,-556.93745952,0.00018139,3]
[372642047,1752729032165,-236.36254048,0.00018139,3]
[372642050,1752729032176,-300.0,0.0001814,2]
[372642052,1752729032186,-300.0,0.0001814,2]
[372642054,1752729032195,-300.0,0.0001814,2]
[372642056,1752729032205,-500.0,0.00018141,2]
[372642058,1752729032215,-310.54787855,0.00018141,2]
[372642059,1752729032224,-568.04615083,0.00018141,2]
[372642063,1752729032234,-523.9694531,0.00018141,2]
[372642065,1752729032244,-500.0,0.00018141,2]
[372642069,1752729032254,-500.0,0.00018141,2]
[372642071,1752729032264,-250.53087799,0.00018141,2]
[372642072,1752729032274,-500.0,0.00018141,2]
[372642073,1752729032284,-500.0,0.00018141,2]
[372642075,1752729032294,-500.0,0.00018141,2]
[372642076,1752729032304,-605.49817571,0.00018141,2]
[372642077,1752729032314,-146.07076401,0.00018141,2]
[372642086,1752729038124,-313.92923599,0.00018141,2]
[372642087,1752729038137,-219.99076401,0.00018141,2]
[372642088,1752729038151,-240.00923599,0.00018141,2]
[372642089,1752729038161,-460.0,0.00018141,2]
[372642090,1752729038172,-460.0,0.00018141,2]
[372642091,1752729038182,-269.99076411,0.00018141,2]
[372642092,1752729038372,-190.00923589,0.00018141,2]
[372642093,1752729038381,-460.0,0.00018141,2]
[372642094,1752729038390,-1946.43,0.00018141,2]
[372642095,1752729038399,-460.0,0.00018141,2]
[372642096,1752729038409,-460.0,0.00018141,2]
[372642097,1752729038419,-15058.23913624,0.00018142,2]
[372642098,1752729038429,-460.0,0.00018142,2]
[372642099,1752729038438,-460.0,0.00018142,2]
[372642100,1752729038448,-460.0,0.00018142,2]
[372642101,1752729038457,-460.0,0.00018142,2]
[372642102,1752729038467,-409.01811056,0.00018142,2]
[372642103,1752729038476,-286.69010854,0.00018142,2]
[372642104,1752729038486,-500.0,0.00018142,2]
[372642105,1752729038496,-500.0,0.00018142,2]
[372642106,1752729038505,-500.0,0.00018142,2]
[372642107,1752729038515,-500.0,0.00018142,2]
[372642108,1752729038525,-450.94716017,0.00018142,2]
[372642109,1752729038534,-2705.82993915,0.00018143,2]
[372642110,1752729038544,-460.0,0.00018143,2]
[372642111,1752729038553,-460.0,0.00018143,2]
[372642112,1752729038563,-460.0,0.00018143,2]
[372642113,1752729038572,-460.0,0.00018143,2]
[372642114,1752729038582,-460.0,0.00018143,2]
[372642115,1752729038591,-460.0,0.00018143,2]
[372642116,1752729038601,-460.0,0.00018143,2]
[372642117,1752729038610,-460.0,0.00018143,2]
[372642118,1752729038619,-460.0,0.00018143,2]
[372642119,1752729038628,-460.0,0.00018143,2]
[372642120,1752729038638,-382.8293988,0.00018143,2]
[372642121,1752729038649,-460.61510512,0.00018143,2]
[372642122,1752729038658,-212.58,0.00018143,2]
[372642123,1752729038668,-460.0,0.00018143,2]
[372642124,1752729038678,-460.0,0.00018143,2]
[372642125,1752729038687,-416.70141312,0.00018143,2]
[372642126,1752729038698,-460.0,0.00018143,2]
[372642127,1752729038709,-463.93410969,0.00018143,2]
[372642128,1752729038719,-460.0,0.00018143,2]
[372642129,1752729038729,-460.0,0.00018143,2]
[372642130,1752729038739,-460.0,0.00018143,2]
[372642131,1752729038749,-2287.91,0.00018143,2]
[372642132,1752729038758,-504.14359822,0.00018143,2]
[372642133,1752729038768,-5227.09,0.00018143,2]
[372642134,1752729038778,-460.0,0.00018143,2]
[372642135,1752729038788,-460.0,0.00018143,2]
[372642136,1752729038798,-460.0,0.00018143,2]
[372642137,1752729038807,-775.0,0.00018143,2]
[372642138,1752729038817,-460.0,0.00018143,2]
[372642139,1752729038827,-521.99,0.00018143,2]
[372642140,1752729038836,-460.0,0.00018143,2]
[372642141,1752729038847,-460.0,0.00018143,2]
[372642142,1752729038857,-460.0,0.00018143,2]
[372642143,1752729038867,-2056.05,0.00018143,2]
[372642144,1752729038877,-2122.58,0.00018143,2]
[372642145,1752729038888,-460.0,0.00018143,2]
[372642146,1752729038899,-460.0,0.00018143,2]
[372642147,1752729038909,-460.0,0.00018143,2]
[372642148,1752729038918,-1441.76,0.00018143,2]
[372642149,1752729038929,-541.33,0.00018143,2]
[372642150,1752729038939,-460.0,0.00018143,2]
[372642151,1752729038949,-460.0,0.00018143,2]
[372642152,1752729038959,-460.0,0.00018143,2]
[372642153,1752729038970,-460.0,0.00018143,2]
[372642154,1752729038980,-696.38,0.00018143,2]
[372642155,1752729038991,-460.76608042,0.00018144,2]
[372642156,1752729039003,-261.022936,0.00018144,2]
[372642157,1752729039014,-460.0,0.00018144,2]
[372642158,1752729039024,-460.0,0.00018144,2]
[372642159,1752729039034,-460.0,0.00018144,2]
[372642160,1752729039043,-460.0,0.00018144,2]
[372642161,1752729039053,-460.0,0.00018144,2]
[372642162,1752729039063,-292.33543009,0.00018144,2]
[372642163,1752729039073,-460.0,0.00018144,2]
[372642164,1752729039083,-460.0,0.00018144,2]
[372642165,1752729039093,-460.0,0.00018144,2]
[372642166,1752729039107,-460.0,0.00018144,2]
[372642167,1752729039117,-460.0,0.00018144,2]
[372642168,1752729039127,-460.0,0.00018144,2]
[372642169,1752729039137,-460.7798428,0.00018144,2]
[372642170,1752729039147,-460.0,0.00018144,2]
[372642171,1752729039158,-460.0,0.00018144,2]
[372642172,1752729039169,-460.0,0.00018144,2]
[372642173,1752729039181,-460.0,0.00018144,2]
[372642174,1752729039191,-461.36909898,0.00018144,2]
[372642175,1752729039202,-460.0,0.00018144,2]
[372642176,1752729039211,-460.0,0.00018144,2]
[372642177,1752729039221,-460.0,0.00018144,2]
[372642178,1752729039230,-460.0,0.00018144,2]
[372642179,1752729039240,-427.23785156,0.00018144,2]
[372642180,1752729039250,-460.0,0.00018144,2]
[372642181,1752729039259,-223.28247795,0.00018144,2]
[372642182,1752729039268,-460.0,0.00018144,2]
[372642183,1752729039278,-460.0,0.00018144,2]
[372642184,1752729039287,-462.24193882,0.00018144,2]
[372642185,1752729039298,-460.0,0.00018144,2]
[372642186,1752729039307,-460.0,0.00018144,2]
[372642187,1752729039317,-460.0,0.00018144,2]
[372642188,1752729039327,-461.2421383,0.00018144,2]
[372642189,1752729039338,-460.0,0.00018144,2]
[372642190,1752729039348,-462.02600908,0.00018144,2]
[372642191,1752729039357,-460.0,0.00018144,2]
[372642192,1752729039367,-460.0,0.00018144,2]
[372642193,1752729039378,-260.0,0.00018144,2]
[372642194,1752729039387,-460.0,0.00018144,2]
[372642195,1752729039397,-460.0,0.00018144,2]
[372642196,1752729039407,-1417.32,0.00018144,2]
[372642197,1752729039416,-460.0,0.00018144,2]
[372642198,1752729039426,-460.0,0.00018144,2]
[372642199,1752729039435,-460.0,0.00018144,2]
[372642200,1752729039445,-460.0,0.00018144,2]
[372642201,1752729039455,-460.0,0.00018144,2]
[372642202,1752729039465,-500.0,0.00018144,2]
[372642203,1752729039474,-460.0,0.00018144,2]
[372642204,1752729039484,-460.0,0.00018144,2]
[372642205,1752729039493,-460.0,0.00018144,2]
[372642206,1752729039503,-460.0,0.00018144,2]
[372642207,1752729039512,-460.0,0.00018144,2]
[372642208,1752729039522,-460.0,0.00018144,2]
[372642209,1752729039531,-460.0,0.00018144,2]
[372642210,1752729039540,-460.0,0.00018144,2]
[372642211,1752729039550,-460.0,0.00018144,2]
[372642212,1752729039559,-460.0,0.00018144,2]
[372642213,1752729039569,-460.0,0.00018144,2]
[372642214,1752729039580,-460.0,0.00018144,2]
[372642215,1752729039590,-460.0,0.00018144,2]
[372642216,1752729039599,-460.0,0.00018144,2]
[372642218,1752729039609,-503.85988388,0.00018144,2]
[372642220,1752729039619,-460.0,0.00018144,2]
[372642221,1752729039628,-460.0,0.00018144,2]
[372642222,1752729039638,-460.0,0.00018144,2]
[372642223,1752729039648,-460.0,0.00018144,2]
[372642224,1752729039657,-460.0,0.00018144,2]
[372642225,1752729039667,-500.0,0.00018144,2]
[372642226,1752729039676,-460.0,0.00018144,2]
[372642227,1752729039686,-460.0,0.00018144,2]
[372642228,1752729039698,-592.56,0.00018144,2]
[372642229,1752729039708,-460.0,0.00018144,2]
[372642230,1752729039718,-460.0,0.00018144,2]
[372642231,1752729039727,-460.0,0.00018144,2]
[372642232,1752729039736,-762.45,0.00018144,2]
[372642233,1752729039746,-460.0,0.00018144,2]
[372642234,1752729039756,-460.0,0.00018144,2]
[372642235,1752729039766,-460.0,0.00018144,2]
[372642236,1752729039775,-460.0,0.00018144,2]
[372642237,1752729039785,-547.03,0.00018144,2]
[372642238,1752729039795,-460.0,0.00018144,2]
[372642239,1752729039804,-460.0,0.00018144,2]
[372642240,1752729039814,-460.0,0.00018144,2]
[372642241,1752729039823,-460.0,0.00018144,2]
[372642242,1752729039833,-460.0,0.00018144,2]
[372642243,1752729039843,-460.0,0.00018144,2]
[372642244,1752729039852,-460.0,0.00018144,2]
[372642245,1752729039861,-460.0,0.00018144,2]
[372642246,1752729039871,-460.0,0.00018144,2]
[372642247,1752729039881,-460.0,0.00018144,2]
[372642248,1752729039891,-460.0,0.00018144,2]
[372642249,1752729039900,-460.0,0.00018144,2]
[372642250,1752729039910,-460.0,0.00018144,2]
[372642252,1752729039920,-460.7360891,0.00018144,2]
[372642253,1752729039929,-460.0,0.00018144,2]
[372642254,1752729039938,-460.0,0.00018144,2]
[372642255,1752729039948,-460.0,0.00018144,2]
[372642256,1752729039957,-461.23864201,0.00018145,2]
[372642257,1752729039968,-460.0,0.00018145,2]
[372642258,1752729039977,-460.0,0.00018145,2]
[372642259,1752729039987,-460.0,0.00018145,2]
[372642260,1752729039996,-460.0,0.00018145,2]
[372642261,1752729040005,-460.0,0.00018145,2]
[372642262,1752729040015,-460.0,0.00018145,2]
[372642263,1752729040025,-460.0,0.00018145,2]
[372642264,1752729040034,-460.0,0.00018145,2]
[372642265,1752729040044,-500.0,0.00018145,2]
[372642266,1752729040054,-500.0,0.00018145,2]
[372642267,1752729040063,-460.0,0.00018146,2]
[372642268,1752729040073,-460.0,0.00018146,2]
[372642269,1752729040083,-460.0,0.00018146,2]
[372642270,1752729040093,-460.0,0.00018146,2]
[372642271,1752729040107,-377.32348666,0.00018146,2]
[372642272,1752729040116,-462.96701274,0.00018146,2]
[372642273,1752729040130,-461.49319222,0.00018146,2]
[372642275,1752729040139,-460.95820383,0.00018146,2]
[372642276,1752729040151,-460.0,0.00018146,2]
[372642277,1752729040160,-460.0,0.00018146,2]
[372642278,1752729040172,-460.0,0.00018146,2]
[372642279,1752729040183,-460.0,0.00018146,2]
[372642280,1752729040193,-460.0,0.00018146,2]
[372642281,1752729040203,-460.0,0.00018146,2]
[372642282,1752729040212,-460.0,0.00018146,2]
[372642283,1752729040222,-460.0,0.00018146,2]
[372642284,1752729040232,-460.0,0.00018146,2]
[372642285,1752729040242,-404.57801145,0.00018146,2]
[372642286,1752729040251,-460.0,0.00018146,2]
[372642287,1752729040261,-302.104,0.00018146,2]
[372642288,1752729040271,-460.0,0.00018146,2]
[372642289,1752729040280,-460.0,0.00018146,2]
[372642290,1752729040291,-460.0,0.00018146,2]
[372642291,1752729040301,-500.0,0.00018146,2]
[372642292,1752729040311,-500.0,0.00018146,2]
[372642293,1752729040321,-460.0,0.00018146,2]
[372642294,1752729040330,-509.0,0.00018146,2]
[372642295,1752729040339,-1640.47,0.00018146,2]
[372642296,1752729040348,-460.0,0.00018146,2]
[372642298,1752729040358,-460.0,0.00018146,2]
[372642299,1752729040367,-460.0,0.00018146,2]
[372642300,1752729040377,-460.0,0.00018146,2]
[372642301,1752729040387,-460.0,0.00018146,2]
[372642302,1752729040397,-460.0,0.00018146,2]
[372642303,1752729040406,-460.0,0.00018146,2]
[372642304,1752729040416,-500.0,0.00018146,2]
[372642305,1752729040426,-460.0,0.00018146,2]
[372642306,1752729040436,-473.76,0.00018146,2]
[372642307,1752729040446,-460.0,0.00018146,2]
[372642308,1752729040456,-460.0,0.00018146,2]
[372642309,1752729040466,-590.39,0.00018146,2]
[372642310,1752729040475,-460.0,0.00018146,2]
[372642311,1752729040485,-460.0,0.00018146,2]
[372642312,1752729040495,-2976.05,0.00018146,2]
[372642313,1752729040504,-948.64,0.00018146,2]
[372642314,1752729040513,-1098.06,0.00018146,2]
[372642315,1752729040523,-460.0,0.00018146,2]
[372642316,1752729040532,-460.0,0.00018146,2]
[372642317,1752729040542,-460.0,0.00018146,2]
[372642318,1752729040551,-460.0,0.00018147,2]
[372642319,1752729040561,-460.0,0.00018147,2]
[372642320,1752729040572,-460.0,0.00018147,2]
[372642321,1752729040581,-460.0,0.00018147,2]
[372642322,1752729040591,-460.0,0.00018147,2]
[372642323,1752729040601,-460.0,0.00018147,2]
[372642324,1752729040610,-465.73,0.00018147,2]
[372642325,1752729040620,-460.0,0.00018147,2]
[372642326,1752729040629,-535.29,0.00018147,2]
[372642327,1752729040638,-240.14415653,0.00018147,2]
[372642328,1752729040647,-463.9932217,0.00018147,2]
[372642329,1752729040657,-460.0,0.00018147,2]
[372642330,1752729040667,-460.0,0.00018147,2]
[372642331,1752729040676,-460.0,0.00018147,2]
[372642332,1752729040686,-460.0,0.00018147,2]
[372642333,1752729040695,-460.0,0.00018147,2]
[372642334,1752729040706,-571.08,0.00018147,2]
[372642335,1752729040716,-460.0,0.00018147,2]
[372642336,1752729040726,-460.0,0.00018147,2]
[372642337,1752729040736,-460.0,0.00018147,2]
[372642338,1752729040745,-597.77,0.00018147,2]
[372642339,1752729040755,-460.0,0.00018147,2]
[372642340,1752729040764,-460.0,0.00018147,2]
[372642341,1752729040773,-460.0,0.00018147,2]
[372642342,1752729040783,-460.0,0.00018147,2]
[372642343,1752729040892,-460.0,0.00018147,2]
[372642344,1752729040902,-712.95,0.00018147,2]
[372642345,1752729040912,-460.0,0.00018147,2]
[372642346,1752729040922,-460.0,0.00018147,2]
[372642347,1752729040932,-460.0,0.00018147,2]
[372642348,1752729040941,-460.0,0.00018147,2]
[372642349,1752729040951,-460.0,0.00018147,2]
[372642350,1752729040961,-460.0,0.00018147,2]
[372642351,1752729040972,-460.0,0.00018147,2]
[372642352,1752729040982,-578.86218605,0.00018147,2]
[372642353,1752729040991,-460.0,0.00018147,2]
[372642354,1752729041003,-460.0,0.00018147,2]
[372642355,1752729041013,-460.0,0.00018147,2]
[372642356,1752729041023,-460.0,0.00018147,2]
[372642357,1752729041033,-460.0,0.00018147,2]
[372642358,1752729041043,-460.0,0.00018147,2]
[372642359,1752729041052,-585.36,0.00018147,2]
[372642360,1752729041061,-460.0,0.00018147,2]
[372642361,1752729041071,-460.0,0.00018147,2]
[372642362,1752729041081,-460.0,0.00018147,2]
[372642363,1752729041091,-460.0,0.00018147,2]
[372642364,1752729041102,-3137.4,0.00018147,2]
[372642365,1752729041112,-460.0,0.00018147,2]
[372642366,1752729041121,-2989.8,0.00018147,2]
[372642367,1752729041131,-1235.25,0.00018147,2]
[372642368,1752729041140,-460.0,0.00018147,2]
[372642369,1752729041150,-460.0,0.00018147,2]
[372642370,1752729041160,-460.0,0.00018147,2]
[372642371,1752729041169,-761.23,0.00018147,2]
[372642372,1752729041180,-460.0,0.00018147,2]
[372642373,1752729041190,-500.0,0.00018147,2]
[372642374,1752729041200,-460.0,0.00018147,2]
[372642375,1752729041209,-460.0,0.00018147,2]
[372642376,1752729041220,-460.0,0.00018147,2]
[372642377,1752729041230,-460.0,0.00018147,2]
[372642378,1752729041239,-500.0,0.00018147,2]
[372642379,1752729041249,-460.0,0.00018147,2]
[372642380,1752729041258,-505.48432054,0.00018148,2]
[372642381,1752729041268,-460.0,0.00018148,2]
[372642382,1752729041278,-460.0,0.00018148,2]
[372642383,1752729041288,-460.0,0.00018148,2]
[372642384,1752729041298,-460.0,0.00018148,2]
[372642385,1752729041309,-184.594539,0.00018148,2]